Workbook

Sheet Tracé DAH (hidden)
A1: Altitude (m) | B1: 0
A3: TS | B3: HR | C3: HR | D3: HR | E3: HR | F3: WA 100 | G3: WA 80 | H3: WA 50 | I3: WA 30 | K3: WA de ENTH0 | L3: WA de ENTH10 | M3: WA de ENTH20 | N3: WA de ENTH30 | O3: WA de ENTH40 | P3: WA de ENTH50 | Q3: WA de ENTH60 | R3: WA de ENTH70 | S3: WA de ENTH80 | T3: WA de ENTH90 | U3: WA de ENTH100 | W3: v' | X3: w | Y3: Ts | Z3: HR
A4: -15 | B4: 100 | C4: 80 | D4: 50 | E4: 30 | F4: =waCEBTP(altitude,$A4,B4) -> 1.183597321 | G4: =waCEBTP(altitude,$A4,C4) -> 0.9465176332 | H4: =waCEBTP(altitude,$A4,D4) -> 0.5912361321 | I4: =waCEBTP(altitude,$A4,E4) -> 0.354606852 | K4: =(0-1.007*$A4)/(2500.8+1.826*$A4)*1000 -> 6.106953558 | L4: =(10-1.007*$A4)/(2500.8+1.826*$A4)*1000 -> 10.14995492 | M4: =(20-1.007*$A4)/(2500.8+1.826*$A4)*1000 -> 14.19295628 | N4: =(30-1.007*$A4)/(2500.8+1.826*$A4)*1000 -> 18.23595765 | O4: =(40-1.007*$A4)/(2500.8+1.826*$A4)*1000 -> 22.27895901 | P4: =(50-1.007*$A4)/(2500.8+1.826*$A4)*1000 -> 26.32196037 | Q4: =(60-1.007*$A4)/(2500.8+1.826*$A4)*1000 -> 30.36496173 | R4: =(70-1.007*$A4)/(2500.8+1.826*$A4)*1000 -> 34.4079631 | S4: =(80-1.007*$A4)/(2500.8+1.826*$A4)*1000 -> 38.45096446 | T4: =(90-1.007*$A4)/(2500.8+1.826*$A4)*1000 -> 42.49396582 | U4: =(100-1.007*$A4)/(2500.8+1.826*$A4)*1000 -> 46.53696718 | W4: 0.75 | X4: 0 | Y4: =W4*ptotz(altitude)/(461.51*(0.622+X4/1000))-273.15 -> -8.41736381 | Z4: =hrbc(altitude,Y4,X4) -> 0
A5: -14.5 | B5: 100 | C5: 80 | D5: 50 | E5: 30 | F5: 1.232944081 | G5: 0.9859643843 | H5: 0.6158616523 | I5: 0.3693707012 | K5: =(0-1.007*$A5)/(2500.8+1.826*$A5)*1000 -> 5.901210149 | L5: =(10-1.007*$A5)/(2500.8+1.826*$A5)*1000 -> 9.942719685 | M5: =(20-1.007*$A5)/(2500.8+1.826*$A5)*1000 -> 13.98422922 | N5: =(30-1.007*$A5)/(2500.8+1.826*$A5)*1000 -> 18.02573876 | O5: =(40-1.007*$A5)/(2500.8+1.826*$A5)*1000 -> 22.06724829 | P5: =(50-1.007*$A5)/(2500.8+1.826*$A5)*1000 -> 26.10875783 | Q5: =(60-1.007*$A5)/(2500.8+1.826*$A5)*1000 -> 30.15026737 | R5: =(70-1.007*$A5)/(2500.8+1.826*$A5)*1000 -> 34.1917769 | S5: =(80-1.007*$A5)/(2500.8+1.826*$A5)*1000 -> 38.23328644 | T5: =(90-1.007*$A5)/(2500.8+1.826*$A5)*1000 -> 42.27479597 | U5: =(100-1.007*$A5)/(2500.8+1.826*$A5)*1000 -> 46.31630551 | W5: 0.75 | X5: 1.88 | Y5: =W5*ptotz(altitude)/(461.51*(0.622+X5/1000))-273.15 -> -9.215109139 | Z5: =hrbc(altitude,Y5,X5) -> 99.96706928
A6: -14 | B6: 100 | C6: 80 | D6: 50 | E6: 30 | F6: 1.284144966 | G6: 1.02689196 | H6: 0.6414103735 | I6: 0.3846875472 | K6: 5.695618519 | L6: 9.735637329 | M6: 13.77565614 | N6: 17.81567495 | O6: 21.85569376 | P6: 25.89571257 | Q6: 29.93573138 | R6: 33.97575019 | S6: 38.015769 | T6: 42.05578781 | U6: 46.09580662
A7: -13.5 | B7: 100 | C7: 80 | D7: 50 | E7: 30 | F7: 1.337261352 | G7: 1.069349275 | H7: 0.6679126908 | I7: 0.4005755569 | K7: 5.490178499 | L7: 9.528707683 | M7: 13.56723687 | N7: 17.60576605 | O7: 21.64429523 | P7: 25.68282442 | Q7: 29.7213536 | R7: 33.75988279 | S7: 37.79841197 | T7: 41.83694115 | U7: 45.87547034 | W7: v' | X7: w | Y7: Ts | Z7: HR
A8: -13 | B8: 100 | C8: 80 | D8: 50 | E8: 30 | F8: 1.392356353 | G8: 1.113386616 | H8: 0.6953998452 | I8: 0.4170533998 | K8: 5.284889922 | L8: 9.321930577 | M8: 13.35897123 | N8: 17.39601189 | O8: 21.43305254 | P8: 25.4700932 | Q8: 29.50713385 | R8: 33.54417451 | S8: 37.58121517 | T8: 41.61825582 | U8: 45.65529648 | W8: 0.8 | X8: 0 | Y8: =W8*ptotz(altitude)/(461.51*(0.622+X8/1000))-273.15 -> 9.231478603 | Z8: =hrbc(altitude,Y8,X8) -> 0
A9: -12.5 | B9: 100 | C9: 80 | D9: 50 | E9: 30 | F9: 1.449494855 | G9: 1.159055676 | H9: 0.7239039425 | I9: 0.4341402589 | K9: 5.079752621 | L9: 9.115305844 | M9: 13.15085907 | N9: 17.18641229 | O9: 21.22196552 | P9: 25.25751874 | Q9: 29.29307196 | R9: 33.32862519 | S9: 37.36417841 | T9: 41.39973164 | U9: 45.43528486 | W9: 0.8 | X9: 6.01 | Y9: =W9*ptotz(altitude)/(461.51*(0.622+X9/1000))-273.15 -> 6.529112898 | Z9: =hrbc(altitude,Y9,X9) -> 100.0433155
A10: -12 | B10: 100 | C10: 80 | D10: 50 | E10: 30 | F10: 1.508743556 | G10: 1.206409584 | H10: 0.753457972 | I10: 0.4518558415 | K10: 4.874766428 | L10: 8.908833316 | M10: 12.9429002 | N10: 16.97696709 | O10: 21.01103398 | P10: 25.04510087 | Q10: 29.07916776 | R10: 33.11323464 | S10: 37.14730153 | T10: 41.18136842 | U10: 45.21543531
A11: -11.5 | B11: 100 | C11: 80 | D11: 50 | E11: 30 | F11: 1.570171015 | G11: 1.255502936 | H11: 0.7840958256 | I11: 0.4702203906 | K11: 4.669931176 | L11: 8.702512823 | M11: 12.73509447 | N11: 16.76767612 | O11: 20.80025776 | P11: 24.83283941 | Q11: 28.86542106 | R11: 32.8980027 | S11: 36.93058435 | T11: 40.963166 | U11: 44.99574764 | W11: v' | X11: w | Y11: Ts | Z11: HR
A12: -11 | B12: 100 | C12: 80 | D12: 50 | E12: 30 | F12: 1.633847688 | G12: 1.306391833 | H12: 0.8158523178 | I12: 0.4892546964 | K12: 4.465246699 | L12: 8.496344198 | M12: 12.5274417 | N12: 16.55853919 | O12: 20.58963669 | P12: 24.62073419 | Q12: 28.65183169 | R12: 32.68292919 | S12: 36.71402669 | T12: 40.74512419 | U12: 44.77622168 | W12: 0.85 | X12: 0 | Y12: =W12*ptotz(altitude)/(461.51*(0.622+X12/1000))-273.15 -> 26.88032102 | Z12: =hrbc(altitude,Y12,X12) -> 0
A13: -10.5 | B13: 100 | C13: 80 | D13: 50 | E13: 30 | F13: 1.699845972 | G13: 1.35913391 | H13: 0.8487632054 | I13: 0.5089801074 | K13: 4.260712831 | L13: 8.290327273 | M13: 12.31994172 | N13: 16.34955616 | O13: 20.3791706 | P13: 24.40878504 | Q13: 28.43839949 | R13: 32.46801393 | S13: 36.49762837 | T13: 40.52724281 | U13: 44.55685726 | W13: 0.85 | X13: 14.66 | Y13: =W13*ptotz(altitude)/(461.51*(0.622+X13/1000))-273.15 -> 19.97169709 | Z13: =hrbc(altitude,Y13,X13) -> 100.0154381
A14: -10 | B14: 100 | C14: 80 | D14: 50 | E14: 30 | F14: 1.768240251 | G14: 1.413788369 | H14: 0.8828652077 | I14: 0.5294185425 | K14: 4.056329405 | L14: 8.084461882 | M14: 12.11259436 | N14: 16.14072684 | O14: 20.16885931 | P14: 24.19699179 | Q14: 28.22512427 | R14: 32.25325675 | S14: 36.28138922 | T14: 40.3095217 | U14: 44.33765418
A15: -9.5 | B15: 100 | C15: 80 | D15: 50 | E15: 30 | F15: 1.839106943 | G15: 1.47041602 | H15: 0.9181960271 | I15: 0.5505925025 | K15: 3.852096255 | L15: 7.878747856 | M15: 11.90539946 | N15: 15.93205106 | O15: 19.95870266 | P15: 23.98535426 | Q15: 28.01200586 | R15: 32.03865747 | S15: 36.06530907 | T15: 40.09196067 | U15: 44.11861227 | W15: v' | X15: w | Y15: Ts | Z15: HR
A16: -9 | B16: 100 | C16: 80 | D16: 50 | E16: 30 | F16: 1.912524539 | G16: 1.529079309 | H16: 0.9547943696 | I16: 0.5725250824 | K16: 3.648013215 | L16: 7.67318503 | M16: 11.69835684 | N16: 15.72352866 | O16: 19.74870047 | P16: 23.77387229 | Q16: 27.7990441 | R16: 31.82421592 | S16: 35.84938773 | T16: 39.87455955 | U16: 43.89973136 | W16: 0.9 | X16: 0 | Y16: =W16*ptotz(altitude)/(461.51*(0.622+X16/1000))-273.15 -> 44.52916343 | Z16: =hrbc(altitude,Y16,X16) -> 0
A17: -8.5 | B17: 100 | C17: 80 | D17: 50 | E17: 30 | F17: 1.988573658 | G17: 1.589842361 | H17: 0.9926999666 | I17: 0.5952399834 | K17: 3.444080121 | L17: 7.467773236 | M17: 11.49146635 | N17: 15.51515946 | O17: 19.53885258 | P17: 23.56254569 | Q17: 27.58623881 | R17: 31.60993192 | S17: 35.63362504 | T17: 39.65731815 | U17: 43.68101127 | W17: 0.9 | X17: 28.33 | Y17: =W17*ptotz(altitude)/(461.51*(0.622+X17/1000))-273.15 -> 30.69026518 | Z17: =hrbc(altitude,Y17,X17) -> 100.0300169
A18: -8 | B18: 100 | C18: 80 | D18: 50 | E18: 30 | F18: 2.067337089 | G18: 1.65277101 | H18: 1.031953596 | I18: 0.6187615253 | K18: 3.240296807 | L18: 7.262512308 | M18: 11.28472781 | N18: 15.30694331 | O18: 19.32915881 | P18: 23.35137431 | Q18: 27.37358981 | R18: 31.39580531 | S18: 35.41802081 | T18: 39.44023631 | U18: 43.46245181
A19: -7.5 | B19: 100 | C19: 80 | D19: 50 | E19: 30 | F19: 2.148899841 | G19: 1.717932842 | H19: 1.072597104 | I19: 0.6431146592 | K19: 3.036663108 | L19: 7.05740208 | M19: 11.07814105 | N19: 15.09888002 | O19: 19.11961899 | P19: 23.14035797 | Q19: 27.16109694 | R19: 31.18183591 | S19: 35.20257488 | T19: 39.22331385 | U19: 43.24405282
A20: -7 | B20: 100 | C20: 80 | D20: 50 | E20: 30 | F20: 2.233349194 | G20: 1.785397228 | H20: 1.114673428 | I20: 0.6683249799 | K20: 2.83317886 | L20: 6.852442386 | M20: 10.87170591 | N20: 14.89096944 | O20: 18.91023296 | P20: 22.92949649 | Q20: 26.94876002 | R20: 30.96802354 | S20: 34.98728707 | T20: 39.0065506 | U20: 43.02581412
A21: -6.5 | B21: 100 | C21: 80 | D21: 50 | E21: 30 | F21: 2.32077475 | G21: 1.855235368 | H21: 1.158226617 | I21: 0.694418739 | K21: 2.629843897 | L21: 6.64763306 | M21: 10.66542222 | N21: 14.68321139 | O21: 18.70100055 | P21: 22.71878971 | Q21: 26.73657888 | R21: 30.75436804 | S21: 34.7721572 | T21: 38.78994637 | U21: 42.80773553
A22: -6 | B22: 100 | C22: 80 | D22: 50 | E22: 30 | F22: 2.411268481 | G22: 1.927520325 | H22: 1.203301858 | I22: 0.7214228578 | K22: 2.426658056 | L22: 6.442973937 | M22: 10.45928982 | N22: 14.4756057 | O22: 18.49192158 | P22: 22.50823746 | Q22: 26.52455335 | R22: 30.54086923 | S22: 34.55718511 | T22: 38.57350099 | U22: 42.58981687
A23: -5.5 | B23: 100 | C23: 80 | D23: 50 | E23: 30 | F23: 2.504924786 | G23: 2.00232707 | H23: 1.249945496 | I23: 0.7493649406 | K23: 2.223621172 | L23: 6.238464852 | M23: 10.25330853 | N23: 14.26815221 | O23: 18.28299589 | P23: 22.29783957 | Q23: 26.31268325 | R23: 30.32752693 | S23: 34.34237061 | T23: 38.35721429 | U23: 42.37205797
A24: -5 | B24: 100 | C24: 80 | D24: 50 | E24: 30 | F24: 2.601840543 | G24: 2.07973252 | H24: 1.29820506 | I24: 0.7782732881 | K24: 2.020733083 | L24: 6.03410564 | M24: 10.0474782 | N24: 14.06085075 | O24: 18.07422331 | P24: 22.08759587 | Q24: 26.10096843 | R24: 30.11434098 | S24: 34.12771354 | T24: 38.1410861 | U24: 42.15445866
A25: -4.5 | B25: 100 | C25: 80 | D25: 50 | E25: 30 | F25: 2.702115165 | G25: 2.159815582 | H25: 1.348129286 | I25: 0.8081769113 | K25: 1.817993623 | L25: 5.829896136 | M25: 9.841798648 | N25: 13.85370116 | O25: 17.86560367 | P25: 21.87750619 | Q25: 25.8894087 | R25: 29.90131121 | S25: 33.91321372 | T25: 37.92511623 | U25: 41.93701875
A26: -4 | B26: 100 | C26: 80 | D26: 50 | E26: 30 | F26: 2.805850655 | G26: 2.242657192 | H26: 1.399768141 | I26: 0.8391055446 | K26: 1.615402631 | L26: 5.625836175 | M26: 9.636269719 | N26: 13.64670326 | O26: 17.65713681 | P26: 21.66757035 | Q26: 25.67800389 | R26: 29.68843744 | S26: 33.69887098 | T26: 37.70930453 | U26: 41.71973807
A27: -3.5 | B27: 100 | C27: 80 | D27: 50 | E27: 30 | F27: 2.913151662 | G27: 2.328340363 | H27: 1.453172847 | I27: 0.8710896605 | K27: 1.412959944 | L27: 5.421925594 | M27: 9.430891245 | N27: 13.4398569 | O27: 17.44882255 | P27: 21.4577882 | Q27: 25.46675385 | R27: 29.4757195 | S27: 33.48468515 | T27: 37.4936508 | U27: 41.50261645
A28: -3 | B28: 100 | C28: 80 | D28: 50 | E28: 30 | F28: 3.024125546 | G28: 2.416950224 | H28: 1.508395909 | I28: 0.9041604832 | K28: 1.210665397 | L28: 5.218164229 | M28: 9.225663061 | N28: 13.23316189 | O28: 17.24066072 | P28: 21.24815956 | Q28: 25.25565839 | R28: 29.26315722 | S28: 33.27065605 | T28: 37.27815488 | U28: 41.28565372
A29: -2.5 | B29: 100 | C29: 80 | D29: 50 | E29: 30 | F29: 3.138882429 | G29: 2.508574072 | H29: 1.56549114 | I29: 0.9383500033 | K29: 1.008518829 | L29: 5.014551915 | M29: 9.020585001 | N29: 13.02661809 | O29: 17.03265117 | P29: 21.03868426 | Q29: 25.04471734 | R29: 29.05075043 | S29: 33.05678352 | T29: 37.0628166 | U29: 41.06884969
A30: -2 | B30: 100 | C30: 80 | D30: 50 | E30: 30 | F30: 3.257535264 | G30: 2.603301412 | H30: 1.624513685 | I30: 0.9736909925 | K30: 0.8065200781 | L30: 4.81108849 | M30: 8.815656901 | N30: 12.82022531 | O30: 16.82479372 | P30: 20.82936214 | Q30: 24.83393055 | R30: 28.83849896 | S30: 32.84306737 | T30: 36.84763578 | U30: 40.85220419
A31: -1.5 | B31: 100 | C31: 80 | D31: 50 | E31: 30 | F31: 3.380199892 | G31: 2.701224005 | H31: 1.685520047 | I31: 1.010217018 | K31: 0.6046689813 | L31: 4.607773789 | M31: 8.610878597 | N31: 12.61398341 | O31: 16.61708821 | P31: 20.62019302 | Q31: 24.62329783 | R31: 28.62640264 | S31: 32.62950745 | T31: 36.63261225 | U31: 40.63571706
A32: -1 | B32: 100 | C32: 80 | D32: 50 | E32: 30 | F32: 3.506995111 | G32: 2.802435919 | H32: 1.748568119 | I32: 1.047962457 | K32: 0.402965377 | L32: 4.404607651 | M32: 8.406249925 | N32: 12.4078922 | O32: 16.40953447 | P32: 20.41117675 | Q32: 24.41281902 | R32: 28.41446129 | S32: 32.41610357 | T32: 36.41774584 | U32: 40.41938812
A33: -0.5 | B33: 100 | C33: 80 | D33: 50 | E33: 30 | F33: 3.638042738 | G33: 2.907033576 | H33: 1.813717205 | I33: 1.086962514 | K33: 0.2014091037 | L33: 4.201589912 | M33: 8.20177072 | N33: 12.20195153 | O33: 16.20213234 | P33: 20.20231314 | Q33: 24.20249395 | R33: 28.20267476 | S33: 32.20285557 | T33: 36.20303638 | U33: 40.20321719
A34: 0 | B34: 100 | C34: 80 | D34: 50 | E34: 30 | F34: 3.773467677 | G34: 3.0151158 | H34: 1.881028052 | I34: 1.127253233 | K34: 0 | L34: 3.998720409 | M34: 7.997440819 | N34: 11.99616123 | O34: 15.99488164 | P34: 19.99360205 | Q34: 23.99232246 | R34: 27.99104287 | S34: 31.98976328 | T34: 35.98848369 | U34: 39.98720409
A35: 0.5 | B35: 100 | C35: 80 | D35: 50 | E35: 30 | F35: 3.913397989 | G35: 3.126783874 | H35: 1.950562878 | I35: 1.168871516 | L35: 3.795998981 | M35: 7.793260058 | N35: 11.79052113 | O35: 15.78778221 | P35: 19.78504329 | Q35: 23.78230437 | R35: 27.77956544 | S35: 31.77682652 | T35: 35.7740876 | U35: 39.77134867
A36: 1 | B36: 100 | C36: 80 | D36: 50 | E36: 30 | F36: =waCEBTP(altitude,$A36,B36) -> 4.057964961 | G36: =waCEBTP(altitude,$A36,C36) -> 3.242141584 | H36: =waCEBTP(altitude,$A36,D36) -> 2.022385399 | I36: =waCEBTP(altitude,$A36,E36) -> 1.211855138 | L36: 3.593425466 | M36: 7.589228275 | N36: 11.58503108 | O36: 15.58083389 | P36: 19.5766367 | Q36: 23.57243951 | R36: 27.56824232 | S36: 31.56404513 | T36: 35.55984794 | U36: 39.55565074
A37: 1.5 | B37: 100 | C37: 80 | D37: 50 | E37: 30 | F37: 4.207303177 | G37: 3.361295278 | H37: 2.096560859 | I37: 1.25624276 | L37: 3.390999701 | M37: 7.385345305 | N37: 11.37969091 | O37: 15.37403651 | P37: 19.36838212 | Q37: 23.36272772 | R37: 27.35707333 | S37: 31.35141893 | T37: 35.34576454 | U37: 39.34011014
A38: 2 | B38: 100 | C38: 80 | D38: 50 | E38: 30 | F38: 4.361550596 | G38: 3.484353922 | H38: 2.173156061 | I38: 1.302073952 | L38: 3.188721525 | M38: 7.181610987 | N38: 11.17450045 | O38: 15.16738991 | P38: 19.16027937 | Q38: 23.15316884 | R38: 27.1460583 | S38: 31.13894776 | T38: 35.13183722 | U38: 39.12472669
A39: 2.5 | B39: 100 | C39: 80 | D39: 50 | E39: 30 | F39: 4.520848623 | G39: 3.611429147 | H39: 2.252239397 | I39: 1.349389203 | L39: 2.986590776 | M39: 6.978025158 | N39: 10.96945954 | O39: 14.96089392 | P39: 18.9523283 | Q39: 22.94376269 | R39: 26.93519707 | S39: 30.92663145 | T39: 34.91806583 | U39: 38.90950021
A40: 3 | B40: 100 | C40: 80 | D40: 50 | E40: 30 | F40: 4.685342189 | G40: 3.742635318 | H40: 2.333880877 | I40: 1.39822994 | L40: 2.784607294 | M40: 6.774587655 | N40: 10.76456802 | O40: 14.75454838 | P40: 18.74452874 | Q40: 22.7345091 | R40: 26.72448946 | S40: 30.71446982 | T40: 34.70445018 | U40: 38.69443055
A41: 3.5 | B41: 100 | C41: 80 | D41: 50 | E41: 30 | F41: 4.85517983 | G41: 3.87808958 | H41: 2.418152163 | I41: 1.448638546 | L41: 2.582770918 | M41: 6.571298318 | N41: 10.55982572 | O41: 14.54835312 | P41: 18.53688052 | Q41: 22.52540792 | R41: 26.51393532 | S41: 30.50246272 | T41: 34.49099012 | U41: 38.47951752
A42: 4 | B42: 100 | C42: 80 | D42: 50 | E42: 30 | F42: 5.030513769 | G42: 4.017911928 | H42: 2.5051266 | I42: 1.500658379 | L42: 2.381081486 | M42: 6.368156982 | N42: 10.35523248 | O42: 14.34230797 | P42: 18.32938347 | Q42: 22.31645897 | R42: 26.30353446 | S42: 30.29060996 | T42: 34.27768545 | U42: 38.26476095
A43: 4.5 | B43: 100 | C43: 80 | D43: 50 | E43: 30 | F43: 5.2115 | G43: 4.162225261 | H43: 2.59487925 | I43: 1.554333782 | L43: 2.179538839 | M43: 6.165163488 | N43: 10.15078814 | O43: 14.13641279 | P43: 18.12203744 | Q43: 22.10766208 | R43: 26.09328673 | S43: 30.07891138 | T43: 34.06453603 | U43: 38.05016068
A44: 5 | B44: 100 | C44: 80 | D44: 50 | E44: 30 | F44: 5.398298372 | G44: 4.311155449 | H44: 2.687486922 | I44: 1.609710112 | L44: 1.978142817 | M44: 5.962317674 | N44: 9.946492532 | O44: 13.93066739 | P44: 17.91484225 | Q44: 21.8990171 | R44: 25.88319196 | S44: 29.86736682 | T44: 33.85154168 | U44: 37.83571653
A45: 5.5 | B45: 100 | C45: 80 | D45: 50 | E45: 30 | F45: 5.591072681 | G45: 4.464831393 | H45: 2.783028211 | I45: 1.666833746 | L45: 1.776893259 | M45: 5.759619379 | N45: 9.742345499 | O45: 13.72507162 | P45: 17.70779774 | Q45: 21.69052386 | R45: 25.67324998 | S45: 29.6559761 | T45: 33.63870222 | U45: 37.62142834
A46: 6 | B46: 100 | C46: 80 | D46: 50 | E46: 30 | F46: 5.789990756 | G46: 4.623385095 | H46: 2.881583528 | I46: 1.725752111 | L46: 1.575790005 | M46: 5.557068441 | N46: 9.538346878 | O46: 13.51962531 | P46: 17.50090375 | Q46: 21.48218219 | R46: 25.46346062 | S46: 29.44473906 | T46: 33.4260175 | U46: 37.40729593
A47: 6.5 | B47: 100 | C47: 80 | D47: 50 | E47: 30 | F47: 5.995224557 | G47: 4.786951719 | H47: 2.983235136 | I47: 1.786513693 | L47: 1.374832897 | M47: 5.354664701 | N47: 9.334496506 | O47: 13.31432831 | P47: 17.29416011 | Q47: 21.27399192 | R47: 25.25382372 | S47: 29.23365553 | T47: 33.21348733 | U47: 37.19331914
A48: 7 | B48: 100 | C48: 80 | D48: 50 | E48: 30 | F48: 6.206950267 | G48: 4.955669668 | H48: 3.088067192 | I48: 1.849168061 | L48: 1.174021775 | M48: 5.152407998 | N48: 9.130794221 | O48: 13.10918044 | P48: 17.08756667 | Q48: 21.06595289 | R48: 25.04433911 | S48: 29.02272534 | T48: 33.00111156 | U48: 36.97949778
A49: 7.5 | B49: 100 | C49: 80 | D49: 50 | E49: 30 | F49: 6.425348393 | G49: 5.129680649 | H49: 3.196165773 | I49: 1.913765886 | L49: 0.9733564791 | M49: 4.950298171 | N49: 8.927239863 | O49: 12.90418156 | P49: 16.88112325 | Q49: 20.85806494 | R49: 24.83500663 | S49: 28.81194832 | T49: 32.78889002 | U49: 36.76583171
A50: 8 | B50: 100 | C50: 80 | D50: 50 | E50: 30 | F50: 6.650603868 | G50: 5.309129744 | H50: 3.307618925 | I50: 1.980358961 | L50: 0.7728368519 | M50: 4.748335061 | N50: 8.723833271 | O50: 12.69933148 | P50: 16.67482969 | Q50: 20.6503279 | R50: 24.62582611 | S50: 28.60132432 | T50: 32.57682253 | U50: 36.55232074
A51: 8.5 | B51: 100 | C51: 80 | D51: 50 | E51: 30 | F51: 6.882906152 | G51: 5.494165492 | H51: 3.422516692 | I51: 2.049000216 | L51: 0.5724627343 | M51: 4.546518509 | N51: 8.520574283 | O51: 12.49463006 | P51: 16.46868583 | Q51: 20.44274161 | R51: 24.41679738 | S51: 28.39085315 | T51: 32.36490893 | U51: 36.3389647
A52: 9 | B52: 100 | C52: 80 | D52: 50 | E52: 30 | F52: 7.122449342 | G52: 5.684939957 | H52: 3.540951162 | I52: 2.119743746 | L52: 0.3722339679 | M52: 4.344848353 | N52: 8.317462739 | O52: 12.29007712 | P52: 16.26269151 | Q52: 20.2353059 | R52: 24.20792028 | S52: 28.18053467 | T52: 32.15314905 | U52: 36.12576344
A53: 9.5 | B53: 100 | C53: 80 | D53: 50 | E53: 30 | F53: 7.369432283 | G53: 5.881608811 | H53: 3.663016501 | I53: 2.192644824 | L53: 0.1721503947 | M53: 4.143324437 | N53: 8.114498478 | O53: 12.08567252 | P53: 16.05684656 | Q53: 20.0280206 | R53: 23.99919465 | S53: 27.97036869 | T53: 31.94154273 | U53: 35.91271677
A54: 10 | B54: 100 | C54: 80 | D54: 50 | E54: 30 | F54: 7.624058681 | G54: 6.084331414 | H54: 3.788809001 | I54: 2.267759928 | M54: 3.941946599 | N54: 7.911681341 | O54: 11.88141608 | P54: 15.85115083 | Q54: 19.82088557 | R54: 23.79062031 | S54: 27.76035505 | T54: 31.7300898 | U54: 35.69982454
A55: 10.5 | B55: 100 | C55: 80 | D55: 50 | E55: 30 | F55: 7.88653722 | G55: 6.293270897 | H55: 3.918427114 | I55: 2.345146759 | M55: 3.740714682 | N55: 7.709011168 | O55: 11.67730765 | P55: 15.64560414 | Q55: 19.61390063 | R55: 23.58219711 | S55: 27.5504936 | T55: 31.51879008 | U55: 35.48708657
A56: 11 | B56: 100 | C56: 80 | D56: 50 | E56: 30 | F56: 8.157081686 | G56: 6.508594244 | H56: 4.0519715 | I56: 2.424864263 | M56: 3.539628527 | N56: 7.506487798 | O56: 11.47334707 | P56: 15.44020634 | Q56: 19.40706561 | R56: 23.37392488 | S56: 27.34078415 | T56: 31.30764342 | U56: 35.27450269
A57: 11.5 | B57: 100 | C57: 80 | D57: 50 | E57: 30 | F57: 8.435911087 | G57: 6.730472385 | H57: 4.18954507 | I57: 2.506972653 | M57: 3.338687976 | N57: 7.304111073 | O57: 11.26953417 | P57: 15.23495727 | Q57: 19.20038036 | R57: 23.16580346 | S57: 27.13122656 | T57: 31.09664965 | U57: 35.06207275
A58: 12 | B58: 100 | C58: 80 | D58: 50 | E58: 30 | F58: 8.723249788 | G58: 6.959080282 | H58: 4.331253027 | I58: 2.591533432 | M58: 3.137892871 | N58: 7.101880833 | O58: 11.0658688 | P58: 15.02985676 | Q58: 18.99384472 | R58: 22.95783268 | S58: 26.92182064 | T58: 30.88580861 | U58: 34.84979657
A59: 12.5 | B59: 100 | C59: 80 | D59: 50 | E59: 30 | F59: 9.019327639 | G59: 7.194597022 | H59: 4.477202919 | I59: 2.678609418 | M59: 2.937243053 | N59: 6.899796919 | O59: 10.86235079 | P59: 14.82490465 | Q59: 18.78745852 | R59: 22.75001238 | S59: 26.71256625 | T59: 30.67512011 | U59: 34.63767398
A60: 13 | B60: 100 | C60: 80 | D60: 50 | E60: 30 | F60: 9.324380115 | G60: 7.437205913 | H60: 4.627504677 | I60: 2.768264763 | M60: 2.736738366 | N60: 6.697859173 | O60: 10.65897998 | P60: 14.62010079 | Q60: 18.58122159 | R60: 22.5423424 | S60: 26.50346321 | T60: 30.46458401 | U60: 34.42570482
A61: 13.5 | B61: 100 | C61: 80 | D61: 50 | E61: 30 | F61: 9.638648457 | G61: 7.687094585 | H61: 4.782270671 | I61: 2.860564977 | M61: 2.536378651 | N61: 6.496067435 | O61: 10.45575622 | P61: 14.415445 | Q61: 18.37513379 | R61: 22.33482257 | S61: 26.29451136 | T61: 30.25420014 | U61: 34.21388893
A62: 14 | B62: 100 | C62: 80 | D62: 50 | E62: 30 | F62: 9.962379821 | G62: 7.944455085 | H62: 4.941615752 | I62: 2.955576959 | M62: 2.336163752 | N62: 6.294421548 | O62: 10.25267934 | P62: 14.21093714 | Q62: 18.16919494 | R62: 22.12745273 | S62: 26.08571053 | T62: 30.04396833 | U62: 34.00222612
A63: 14.5 | B63: 100 | C63: 80 | D63: 50 | E63: 30 | F63: 10.29582743 | G63: 8.209483989 | H63: 5.105657309 | I63: 3.053369012 | M63: 2.136093511 | N63: 6.092921354 | O63: 10.0497492 | P63: 14.00657704 | Q63: 17.96340488 | R63: 21.92023272 | S63: 25.87706057 | T63: 29.83388841 | U63: 33.79071625
A64: 15 | B64: 100 | C64: 80 | D64: 50 | E64: 30 | F64: 10.63925071 | G64: 8.482382502 | H64: 5.274515316 | I64: 3.154010875 | M64: 1.936167772 | N64: 5.891566694 | O64: 9.846965616 | P64: 13.80236454 | Q64: 17.75776346 | R64: 21.71316238 | S64: 25.6685613 | T64: 29.62396022 | U64: 33.57935915
A65: 15.5 | B65: 100 | C65: 80 | D65: 50 | E65: 30 | F65: 10.99291551 | G65: 8.763356574 | H65: 5.448312386 | I65: 3.257573747 | M65: 1.736386379 | N65: 5.690357411 | O65: 9.644328444 | P65: 13.59829948 | Q65: 17.55227051 | R65: 21.50624154 | S65: 25.46021257 | T65: 29.41418361 | U65: 33.36815464
A66: 16 | B66: 100 | C66: 80 | D66: 50 | E66: 30 | F66: 11.35709419 | G66: 9.052617013 | H66: 5.627173827 | I66: 3.364130311 | M66: 1.536749175 | N66: 5.489293348 | O66: 9.441837522 | P66: 13.3943817 | Q66: 17.34692587 | R66: 21.29947004 | S66: 25.25201422 | T66: 29.20455839 | U66: 33.15710256
A67: 16.5 | B67: 100 | C67: 80 | D67: 50 | E67: 30 | F67: 11.73206585 | G67: 9.350379603 | H67: 5.811227695 | I67: 3.473754765 | M67: 1.337256004 | N67: 5.288374348 | O67: 9.239492692 | P67: 13.19061104 | Q67: 17.14172938 | R67: 21.09284773 | S67: 25.04396607 | T67: 28.99508441 | U67: 32.94620276
A68: 17 | B68: 100 | C68: 80 | D68: 50 | E68: 30 | F68: =waCEBTP(altitude,$A68,B68) -> 12.11811651 | G68: =waCEBTP(altitude,$A68,C68) -> 9.656865226 | H68: =waCEBTP(altitude,$A68,D68) -> 6.000604854 | I68: =waCEBTP(altitude,$A68,E68) -> 3.586522844 | M68: 1.13790671 | N68: 5.087600253 | O68: 9.037293796 | P68: 12.98698734 | Q68: 16.93668088 | R68: 20.88637443 | S68: 24.83606797 | T68: 28.78576151 | U68: 32.73545506
A69: 17.5 | B69: 100 | C69: 80 | D69: 50 | E69: 30 | F69: 12.51553926 | G69: 9.972299987 | H69: 6.195439033 | I69: 3.702511853 | M69: =(20-1.007*$A69)/(2500.8+1.826*$A69)*1000 -> 0.9387011377 | N69: =(30-1.007*$A69)/(2500.8+1.826*$A69)*1000 -> 4.886970907 | O69: =(40-1.007*$A69)/(2500.8+1.826*$A69)*1000 -> 8.835240677 | P69: =(50-1.007*$A69)/(2500.8+1.826*$A69)*1000 -> 12.78351045 | Q69: =(60-1.007*$A69)/(2500.8+1.826*$A69)*1000 -> 16.73178022 | R69: =(70-1.007*$A69)/(2500.8+1.826*$A69)*1000 -> 20.68004999 | S69: =(80-1.007*$A69)/(2500.8+1.826*$A69)*1000 -> 24.62831975 | T69: =(90-1.007*$A69)/(2500.8+1.826*$A69)*1000 -> 28.57658952 | U69: =(100-1.007*$A69)/(2500.8+1.826*$A69)*1000 -> 32.52485929
A70: 18 | B70: 100 | C70: 80 | D70: 50 | E70: 30 | F70: 12.92463448 | G70: 10.29691535 | H70: 6.395866886 | I70: 3.821800692 | M70: =(20-1.007*$A70)/(2500.8+1.826*$A70)*1000 -> 0.7396391319 | N70: 4.686486154 | O70: 8.633333175 | P70: 12.5801802 | Q70: 16.52702722 | R70: 20.47387424 | S70: 24.42072126 | T70: 28.36756828 | U70: 32.31441531
A71: 18.5 | B71: 100 | C71: 80 | D71: 50 | E71: 30 | F71: 13.34571005 | G71: 10.63094825 | H71: 6.602028056 | I71: 3.944469887 | M71: =(20-1.007*$A71)/(2500.8+1.826*$A71)*1000 -> 0.5407205372 | N71: 4.486145836 | O71: 8.431571135 | P71: 12.37699643 | Q71: 16.32242173 | R71: 20.26784703 | S71: 24.21327233 | T71: 28.15869763 | U71: 32.10412293
A72: 19 | B72: 100 | C72: 80 | D72: 50 | E72: 30 | F72: 13.77908153 | G72: 10.97464128 | H72: 6.814065235 | I72: 4.07060162 | M72: =(20-1.007*$A72)/(2500.8+1.826*$A72)*1000 -> 0.3419451988 | N72: 4.285949799 | O72: 8.229954399 | P72: 12.173959 | Q72: 16.1179636 | R72: 20.0619682 | S72: 24.0059728 | T72: 27.9499774 | U72: 31.893982
A73: 19.5 | B73: 100 | C73: 80 | D73: 50 | E73: 30 | F73: 14.22507238 | G73: 11.32824277 | H73: 7.032124234 | I73: 4.200279756 | M73: =(20-1.007*$A73)/(2500.8+1.826*$A73)*1000 -> 0.143312962 | N73: 4.085897886 | O73: 8.028482811 | P73: 11.97106773 | Q73: 15.91365266 | R73: 19.85623758 | S73: 23.79882251 | T73: 27.74140743 | U73: 31.68399236
A74: 20 | B74: 100 | C74: 80 | D74: 50 | E74: 30 | F74: 14.68401421 | G74: 11.692007 | H74: 7.256354047 | I74: 4.33358988 | N74: 3.885989942 | O74: 7.827156212 | P74: 11.76832248 | Q74: 15.70948875 | R74: 19.65065502 | S74: 23.59182129 | T74: 27.53298756 | U74: 31.47415383
A75: 20.5 | B75: 100 | C75: 80 | D75: 50 | E75: 30 | F75: 15.15624698 | G75: 12.0661943 | H75: 7.486906924 | I75: 4.470619324 | N75: 3.686225811 | O75: 7.625974448 | P75: 11.56572308 | Q75: 15.50547172 | R75: 19.44522036 | S75: 23.38496899 | T75: 27.32471763 | U75: 31.26446626
A76: 21 | B76: 100 | C76: 80 | D76: 50 | E76: 30 | F76: 15.64211926 | G76: 12.45107125 | H76: 7.723938435 | I76: 4.611457202 | N76: 3.486605339 | O76: 7.424937361 | P76: 11.36326938 | Q76: 15.3016014 | R76: 19.23993343 | S76: 23.17826545 | T76: 27.11659747 | U76: 31.05492949
A77: 21.5 | B77: 100 | C77: 80 | D77: 50 | E77: 30 | F77: 16.14198847 | G77: 12.84691081 | H77: 7.967607554 | I77: 4.756194442 | N77: 3.28712837 | O77: 7.224044796 | P77: 11.16096122 | Q77: 15.09787765 | R77: 19.03479407 | S77: 22.9717105 | T77: 26.90862693 | U77: 30.84554335
A78: 22 | B78: 100 | C78: 80 | D78: 50 | E78: 30 | F78: 16.65622114 | G78: 13.25399253 | H78: 8.218076725 | I78: 4.904923822 | N78: 3.087794749 | O78: 7.023296597 | P78: 10.95879844 | Q78: 14.89430029 | R78: 18.82980214 | S78: 22.76530399 | T78: 26.70080583 | U78: 30.63630768
A79: 22.5 | B79: 100 | C79: 80 | D79: 50 | E79: 30 | F79: 17.1851932 | G79: 13.67260269 | H79: 8.475511944 | I79: 5.057740005 | N79: 2.888604323 | O79: 6.822692608 | P79: 10.75678089 | Q79: 14.69086918 | R79: 18.62495746 | S79: 22.55904575 | T79: 26.49313403 | U79: 30.42722232
A80: 23 | B80: 100 | C80: 80 | D80: 50 | E80: 30 | F80: 17.72929023 | G80: 14.1030345 | H80: 8.740082843 | I80: 5.214739573 | N80: 2.689556937 | O80: 6.622232674 | P80: 10.55490841 | Q80: 14.48758415 | R80: 18.42025989 | S80: 22.35293562 | T80: 26.28561136 | U80: 30.2182871
A81: 23.5 | B81: 100 | C81: 80 | D81: 50 | E81: 30 | F81: 18.28890777 | G81: 14.5455883 | H81: 9.011962763 | I81: 5.376021065 | N81: 2.490652437 | O81: 6.421916641 | P81: 10.35318084 | Q81: 14.28444505 | R81: 18.21570925 | S81: 22.14697346 | T81: 26.07823766 | U81: 30.00950187
A82: 24 | B82: 100 | C82: 80 | D82: 50 | E82: 30 | F82: 18.86445163 | G82: 15.00057173 | H82: 9.29132885 | I82: 5.541685015 | N82: 2.291890668 | O82: 6.221744352 | P82: 10.15159804 | Q82: 14.08145172 | R82: 18.0113054 | S82: 21.94115909 | T82: 25.87101277 | U82: 29.80086645
A83: 24.5 | B83: 100 | C83: 80 | D83: 50 | E83: 30 | F83: 19.45633818 | G83: 15.46829998 | H83: 9.578362136 | I83: 5.711833992 | N83: 2.093271479 | O83: 6.021715654 | P83: 9.950159829 | Q83: 13.878604 | R83: 17.80704818 | S83: 21.73549235 | T83: 25.66393653 | U83: 29.5923807
A84: 25 | B84: 100 | C84: 80 | D84: 50 | E84: 30 | F84: 20.06499472 | G84: 15.94909593 | H84: 9.873247632 | I84: 5.886572638 | N84: 1.894794714 | O84: 5.821830391 | P84: 9.748866068 | Q84: 13.67590175 | R84: 17.60293742 | S84: 21.5299731 | T84: 25.45700878 | U84: 29.38404445
A85: 25.5 | B85: 100 | C85: 80 | D85: 50 | E85: 30 | F85: 20.69085978 | G85: 16.44329045 | H85: 10.17617442 | I85: 6.066007707 | N85: 1.696460222 | O85: 5.622088411 | P85: 9.547716599 | Q85: 13.47334479 | R85: 17.39897298 | S85: 21.32460117 | T85: 25.25022935 | U85: 29.17585754
A86: 26 | B86: 100 | C86: 80 | D86: 50 | E86: 30 | F86: 21.33438349 | G86: 16.95122259 | H86: 10.48733576 | I86: 6.250248114 | N86: 1.498267849 | O86: 5.422489558 | P86: 9.346711267 | Q86: 13.27093298 | R86: 17.19515468 | S86: 21.11937639 | T86: 25.0435981 | U86: 28.96781981
A87: 26.5 | B87: 100 | C87: 80 | D87: 50 | E87: 30 | F87: 21.99602799 | G87: 17.4732398 | H87: 10.80692918 | I87: 6.439404969 | N87: 1.300217442 | O87: 5.223033679 | P87: 9.145849915 | Q87: 13.06866615 | R87: 16.99148239 | S87: 20.91429863 | T87: 24.83711486 | U87: 28.7599311
A88: 27 | B88: 100 | C88: 80 | D88: 50 | E88: 30 | F88: 22.67626776 | G88: 18.00969821 | H88: 11.13515656 | I88: 6.63359163 | N88: 1.102308849 | O88: 5.02372062 | P88: 8.945132391 | Q88: 12.86654416 | R88: 16.78795593 | S88: 20.7093677 | T88: 24.63077947 | U88: 28.55219125
A89: 27.5 | B89: 100 | C89: 80 | D89: 50 | E89: 30 | F89: 23.37559006 | G89: 18.56096289 | H89: 11.47222428 | I89: 6.832923742 | N89: 0.9045419176 | O89: 4.824550228 | P89: 8.744558538 | Q89: 12.66456685 | R89: 16.58457516 | S89: 20.50458347 | T89: 24.42459178 | U89: 28.34460009
A90: 28 | B90: 100 | C90: 80 | D90: 50 | E90: 30 | F90: 24.09449533 | G90: 19.12740808 | H90: 11.81834331 | I90: 7.037519285 | N90: 0.7069164961 | O90: 4.62552235 | P90: 8.544128204 | Q90: 12.46273406 | R90: 16.38133991 | S90: 20.29994577 | T90: 24.21855162 | U90: 28.13715747
A91: 28.5 | B91: 100 | C91: 80 | D91: 50 | E91: 30 | F91: 24.83349767 | G91: 19.7094175 | H91: 12.17372932 | I91: 7.247498627 | N91: 0.5094324323 | O91: 4.426636833 | P91: 8.343841234 | Q91: 12.26104564 | R91: 16.17825004 | S91: 20.09545444 | T91: 24.01265884 | U91: 27.92986324
A92: 29 | B92: 100 | C92: 80 | D92: 50 | E92: 30 | F92: 25.59312524 | G92: 20.30738462 | H92: 12.53860279 | I92: 7.462984567 | N92: 0.3120895748 | O92: 4.227893525 | P92: 8.143697474 | Q92: 12.05950142 | R92: 15.97530537 | S92: 19.89110932 | T92: 23.80691327 | U92: 27.72271722
A93: 29.5 | B93: 100 | C93: 80 | D93: 50 | E93: 30 | F93: 26.3739208 | G93: 20.92171298 | H93: 12.91318916 | I93: 7.68410239 | N93: 0.1148877721 | O93: 4.029292272 | P93: 7.943696771 | Q93: 11.85810127 | R93: 15.77250577 | S93: 19.68691027 | T93: 23.60131477 | U93: 27.51571927
A94: 30 | B94: 100 | C94: 80 | D94: 50 | E94: 30 | F94: 27.17644218 | G94: 21.55281649 | H94: 13.29771893 | I94: 7.910979918 | O94: 3.830832922 | P94: 7.743838972 | Q94: 11.65684502 | R94: 15.56985107 | S94: 19.48285712 | T94: 23.39586317 | U94: 27.30886922
A95: 30.5 | B95: 100 | C95: 80 | D95: 50 | E95: 30 | F95: 28.00126278 | G95: 22.20111975 | H95: 13.6924278 | I95: 8.143747563 | O95: 3.632515325 | P95: 7.544123923 | Q95: 11.45573252 | R95: 15.36734112 | S95: 19.27894972 | T95: 23.19055832 | U95: 27.10216691
A96: 31 | B96: 100 | C96: 80 | D96: 50 | E96: 30 | F96: 28.84897218 | G96: 22.86705841 | H96: 14.09755681 | I96: 8.382538387 | O96: 3.434339327 | P96: 7.344551471 | Q96: 11.25476362 | R96: 15.16497576 | S96: 19.07518791 | T96: 22.98540005 | U96: 26.89561219
A97: 31.5 | B97: 100 | C97: 80 | D97: 50 | E97: 30 | F97: 29.72017664 | G97: 23.5510795 | H97: 14.51335247 | I97: 8.627488152 | O97: 3.236304777 | P97: 7.145121465 | Q97: 11.05393815 | R97: 14.96275484 | S97: 18.87157153 | T97: 22.78038822 | U97: 26.6892049
A98: 32 | B98: 100 | C98: 80 | D98: 50 | E98: 30 | F98: 30.61549976 | G98: 24.25364181 | H98: 14.94006691 | I98: 8.878735386 | O98: 3.038411523 | P98: 6.94583375 | Q98: 10.85325598 | R98: 14.7606782 | S98: 18.66810043 | T98: 22.57552266 | U98: 26.48294488
A99: 32.5 | B99: 100 | C99: 80 | D99: 50 | E99: 30 | F99: 31.53558307 | G99: 24.97521629 | H99: 15.37795803 | I99: 9.136421441 | O99: 2.840659416 | P99: 6.746688176 | Q99: 10.65271694 | R99: 14.5587457 | S99: 18.46477446 | T99: 22.37080322 | U99: 26.27683198
A100: 33 | B100: 100 | C100: 80 | D100: 50 | E100: 30 | F100: =waCEBTP(altitude,$A100,B100) -> 32.48108668 | G100: =waCEBTP(altitude,$A100,C100) -> 25.71628641 | H100: =waCEBTP(altitude,$A100,D100) -> 15.82728967 | I100: =waCEBTP(altitude,$A100,E100) -> 9.400690553 | O100: 2.643048303 | P100: 6.54768459 | Q100: 10.45232088 | R100: 14.35695716 | S100: 18.26159345 | T100: 22.16622974 | U100: 26.07086602
A101: 33.5 | B101: 100 | C101: 80 | D101: 50 | E101: 30 | F101: 33.45269001 | G101: 26.47734862 | H101: 16.28833173 | I101: 9.67168991 | O101: 2.445578033 | P101: 6.34882284 | Q101: 10.25206765 | R101: 14.15531245 | S101: 18.05855726 | T101: 21.96180207 | U101: 25.86504687
A102: 34 | B102: 100 | C102: 80 | D102: 50 | E102: 30 | F102: 34.45109243 | G102: 27.25891275 | H102: 16.76136038 | I102: 9.94956972 | O102: 2.248248458 | P102: 6.150102775 | Q102: 10.05195709 | R102: 13.95381141 | S102: 17.85566573 | T102: 21.75752004 | U102: 25.65937436
A103: 34.5 | B103: 100 | C103: 80 | D103: 50 | E103: 30 | F103: 35.47701411 | G103: 28.0615025 | H103: 17.24665823 | I103: 10.23448327 | O103: 2.051059425 | P103: 5.951524243 | Q103: 9.851989062 | R103: 13.75245388 | S103: 17.6529187 | T103: 21.55338352 | U103: 25.45384834
A104: 35 | B104: 100 | C104: 80 | D104: 50 | E104: 30 | F104: 36.5311967 | G104: 28.88565589 | H104: 17.74451447 | I104: 10.52658702 | O104: 1.854010785 | P104: 5.753087094 | Q104: 9.652163402 | R104: 13.55123971 | S104: 17.45031602 | T104: 21.34939233 | U104: 25.24846864
A105: 35.5 | B105: 100 | C105: 80 | D105: 50 | E105: 30 | F105: 37.61440425 | G105: 29.73192575 | H105: 18.2552251 | I105: 10.82604065 | O105: 1.657102388 | P105: 5.554791175 | Q105: 9.452479963 | R105: 13.35016875 | S105: 17.24785754 | T105: 21.14554633 | U105: 25.04323511
A106: 36 | B106: 100 | C106: 80 | D106: 50 | E106: 30 | F106: 38.72742401 | G106: 30.60088028 | H106: 18.77909311 | I106: 11.13300714 | O106: 1.460334085 | P106: 5.356636338 | Q106: 9.252938591 | R106: 13.14924084 | S106: 17.0455431 | T106: 20.94184535 | U106: 24.8381476
A107: 36.5 | B107: 100 | C107: 80 | D107: 50 | E107: 30 | F107: 39.87106738 | G107: 31.49310353 | H107: 19.31642868 | I107: 11.44765286 | O107: 1.263705725 | P107: 5.15862243 | Q107: 9.053539136 | R107: 12.94845584 | S107: 16.84337255 | T107: 20.73828925 | U107: 24.63320596
A108: 37 | B108: 100 | C108: 80 | D108: 50 | E108: 30 | F108: 41.04617084 | G108: 32.40919603 | H108: 19.86754939 | I108: 11.77014764 | O108: 1.06721716 | P108: 4.960749302 | Q108: 8.854281445 | R108: 12.74781359 | S108: 16.64134573 | T108: 20.53487787 | U108: 24.42841001
A109: 37.5 | B109: 100 | C109: 80 | D109: 50 | E109: 30 | F109: 42.25359695 | G109: 33.34977532 | H109: 20.43278041 | I109: 12.10066489 | O109: 0.870868241 | P109: 4.763016804 | Q109: 8.655165368 | R109: 12.54731393 | S109: 16.43946249 | T109: 20.33161106 | U109: 24.22375962
A110: 38 | B110: 100 | C110: 80 | D110: 50 | E110: 30 | F110: 43.4942354 | G110: 34.31547661 | H110: 21.0124548 | I110: 12.4393816 | O110: 0.6746588187 | P110: 4.565424786 | Q110: 8.456190753 | R110: 12.34695672 | S110: 16.23772269 | T110: 20.12848866 | U110: 24.01925462
A111: 38.5 | B111: 100 | C111: 80 | D111: 50 | E111: 30 | F111: 44.76900414 | G111: 35.30695343 | H111: 21.60691364 | I111: 12.78647852 | O111: 0.4785887447 | P111: 4.367973098 | Q111: 8.257357451 | R111: 12.1467418 | S111: 16.03612616 | T111: 19.92551051 | U111: 23.81489486
A112: 39 | B112: 100 | C112: 80 | D112: 50 | E112: 30 | F112: 46.0788505 | G112: 36.32487827 | H112: 22.21650638 | I112: 13.1421402 | O112: 0.2826578704 | P112: 4.17066159 | Q112: 8.058665311 | R112: 11.94666903 | S112: 15.83467275 | T112: 19.72267647 | U112: 23.61068019
A113: 39.5 | B113: 100 | C113: 80 | D113: 50 | E113: 30 | F113: 47.42475243 | G113: 37.36994332 | H113: 22.84159101 | I113: 13.50655511 | O113: 0.08686604789 | P113: 3.973490115 | Q113: 7.860114181 | R113: 11.74673825 | S113: 15.63336231 | T113: 19.51998638 | U113: 23.40661045
A114: 40 | B114: 100 | C114: 80 | D114: 50 | E114: 30 | F114: 48.80771977 | G114: 38.44286122 | H114: 23.48253436 | I114: 13.87991573 | P114: 3.776458521 | Q114: 7.661703913 | R114: 11.54694931 | S114: 15.4321947 | T114: 19.31744009 | U114: 23.20268548
A115: 40.5 | B115: 100 | C115: 80 | D115: 50 | E115: 30 | F115: 50.22879562 | G115: 39.5443658 | H115: 24.13971238 | I115: 14.26241863 | P115: 3.579566661 | Q115: 7.463434357 | R115: 11.34730205 | S115: 15.23116975 | T115: 19.11503744 | U115: 22.99890514
A116: 41 | B116: 100 | C116: 80 | D116: 50 | E116: 30 | F116: 51.68905774 | G116: 40.67521293 | H116: 24.8135104 | I116: 14.6542646 | P116: 3.382814387 | Q116: 7.265305362 | R116: 11.14779634 | S116: 15.03028731 | T116: 18.91277829 | U116: 22.79526926
A117: 41.5 | B117: 100 | C117: 80 | D117: 50 | E117: 30 | F117: 53.18962005 | G117: 41.83618138 | H117: 25.50432347 | I117: 15.05565878 | P117: 3.186201549 | Q117: 7.067316779 | R117: 10.94843201 | S117: 14.82954724 | T117: 18.71066247 | U117: 22.5917777
A118: 42 | B118: 100 | C118: 80 | D118: 50 | E118: 30 | F118: 54.7316342 | G118: 43.02807367 | H118: 26.2125566 | I118: 15.46681071 | P118: 2.989727999 | Q118: 6.86946846 | R118: 10.74920892 | S118: 14.62894938 | T118: 18.50868984 | U118: 22.3884303
A119: 42.5 | B119: 100 | C119: 80 | D119: 50 | E119: 30 | F119: 56.31629125 | G119: 44.25171706 | H119: 26.93862516 | I119: 15.88793451 | P119: 2.79339359 | Q119: 6.671760255 | R119: 10.55012692 | S119: 14.42849358 | T119: 18.30686025 | U119: 22.18522691
A120: 43 | B120: 100 | C120: 80 | D120: 50 | E120: 30 | F120: 57.94482339 | G120: 45.50796451 | H120: 27.68295515 | I120: 16.31924895 | P120: 2.597198174 | Q120: 6.474192015 | R120: 10.35118586 | S120: 14.2281797 | T120: 18.10517354 | U120: 21.98216738
A121: 43.5 | B121: 100 | C121: 80 | D121: 50 | E121: 30 | F121: 59.61850581 | G121: 46.79769574 | H121: 28.44598358 | I121: 16.76097761 | P121: 2.401141603 | Q121: 6.276763592 | R121: 10.15238558 | S121: 14.02800757 | T121: 17.90362956 | U121: 21.77925155
A122: 44 | B122: 100 | C122: 80 | D122: 50 | E122: 30 | F122: 61.33865863 | G122: 48.12181829 | H122: 29.22815885 | I122: 17.21334901 | P122: 2.20522373 | Q122: 6.079474838 | R122: 9.953725945 | S122: 13.82797705 | T122: 17.70222816 | U122: 21.57647927
A123: 44.5 | B123: 100 | C123: 80 | D123: 50 | E123: 30 | F123: 63.10664897 | G123: 49.48126868 | H123: 30.02994108 | I123: 17.6765967 | P123: 2.009444408 | Q123: 5.882325603 | R123: 9.755206798 | S123: 13.62808799 | T123: 17.50096919 | U123: 21.37385038
A124: 45 | B124: 100 | C124: 80 | D124: 50 | E124: 30 | F124: 64.92389311 | G124: 50.87701359 | H124: 30.85180256 | I124: 18.15095947 | P124: 1.81380349 | Q124: 5.685315741 | R124: 9.556827993 | S124: 13.42834024 | T124: 17.2998525 | U124: 21.17136475
A125: 45.5 | B125: 100 | C125: 80 | D125: 50 | E125: 30 | F125: 66.79185881 | G125: 52.31005118 | H125: 31.69422811 | I125: 18.63668141 | P125: 1.618300829 | Q125: 5.488445104 | R125: 9.358589379 | S125: 13.22873365 | T125: 17.09887793 | U125: 20.9690222
A126: 46 | B126: 100 | C126: 80 | D126: 50 | E126: 30 | F126: 68.7120677 | G126: 53.78141235 | H126: 32.55771556 | I126: 19.13401215 | P126: 1.422936278 | Q126: 5.291713543 | R126: 9.160490809 | S126: 13.02926807 | T126: 16.89804534 | U126: 20.7668226
A127: 46.5 | B127: 100 | C127: 80 | D127: 50 | E127: 30 | F127: 70.68609788 | G127: 55.29216217 | H127: 33.44277615 | I127: 19.64320693 | P127: 1.227709692 | Q127: 5.095120913 | R127: 8.962532133 | S127: 12.82994335 | T127: 16.69735457 | U127: 20.5647658
A128: 47 | B128: 100 | C128: 80 | D128: 50 | E128: 30 | F128: 72.71558663 | G128: 56.84340137 | H128: 34.34993505 | I128: 20.16452683 | P128: 1.032620924 | Q128: 4.898667065 | R128: 8.764713205 | S128: 12.63075935 | T128: 16.49680549 | U128: 20.36285163
A129: 47.5 | B129: 100 | C129: 80 | D129: 50 | E129: 30 | F129: 74.80223326 | G129: 58.43626785 | H129: 35.2797318 | I129: 20.69823888 | P129: 0.8376698286 | Q129: 4.702351852 | R129: 8.567033876 | S129: 12.4317159 | T129: 16.29639792 | U129: 20.16107995
A130: 48 | B130: 100 | C130: 80 | D130: 50 | E130: 30 | F130: 76.94780221 | G130: 60.07193835 | H130: 36.23272085 | I130: 21.24461627 | P130: 0.6428562598 | Q130: 4.506175129 | R130: 8.369493998 | S130: 12.23281287 | T130: 16.09613174 | U130: 19.95945061
A131: 48.5 | B131: 100 | C131: 80 | D131: 50 | E131: 30 | F131: 79.15412625 | G131: 61.75163016 | H131: 37.20947209 | I131: 21.80393853 | P131: 0.4481800722 | Q131: 4.310136748 | R131: 8.172093424 | S131: 12.0340501 | T131: 15.89600678 | U131: 19.75796345
A132: 49 | B132: 100 | C132: 80 | D132: 50 | E132: 30 | F132: 81.42310991 | G132: 63.4766029 | H132: 38.21057139 | I132: 22.37649169 | P132: 0.2536411206 | Q132: 4.114236563 | R132: 7.974832006 | S132: 11.83542745 | T132: 15.69602289 | U132: 19.55661833
A133: 49.5 | B133: 100 | C133: 80 | D133: 50 | E133: 30 | F133: 83.75673311 | G133: 65.24816052 | H133: 39.23662121 | I133: 22.96256848 | P133: =(50-1.007*$A133)/(2500.8+1.826*$A133)*1000 -> 0.05923925985 | Q133: =(60-1.007*$A133)/(2500.8+1.826*$A133)*1000 -> 3.918474429 | R133: =(70-1.007*$A133)/(2500.8+1.826*$A133)*1000 -> 7.777709598 | S133: =(80-1.007*$A133)/(2500.8+1.826*$A133)*1000 -> 11.63694477 | T133: =(90-1.007*$A133)/(2500.8+1.826*$A133)*1000 -> 15.49617994 | U133: =(100-1.007*$A133)/(2500.8+1.826*$A133)*1000 -> 19.35541511
A134: 50 | B134: 100 | C134: 80 | D134: 50 | E134: 30 | F134: 86.15705506 | G134: 67.06765322 | H134: 40.28824119 | I134: 23.56246856 | Q134: =(60-1.007*$A134)/(2500.8+1.826*$A134)*1000 -> 3.722850199 | R134: =(70-1.007*$A134)/(2500.8+1.826*$A134)*1000 -> 7.580726052 | S134: =(80-1.007*$A134)/(2500.8+1.826*$A134)*1000 -> 11.43860191 | T134: =(90-1.007*$A134)/(2500.8+1.826*$A134)*1000 -> 15.29647776 | U134: =(100-1.007*$A134)/(2500.8+1.826*$A134)*1000 -> 19.15435361

Sheet Liste
C3: Batterie chaude sèche | F3: Batterie chaude + humidificateur | I3: Batterie froide pour déshumidifier + batterie chaude
C4: Te [°C] | F4: Te [°C] | G4: 8.198 | I4: Te [°C]
C5: Ts [°C] | F5: Ts [°C] | G5: 22.222 | I5: Ts [°C]
C6: we [g/kgas] | F6: we [g/kgas] | G6: 4.954886848 | I6: we [g/kgas]
C7: ws [g/kgas] | F7: ws [g/kgas] | G7: 6.933761197 | I7: ws [g/kgas]
F8: T_inter [°C] | G8: 22.222 | I8: T_inter [°C]
F9: w_inter [g/kgas] | G9: 4.954886848 | I9: w_inter [g/kgas]
C10: Batterie froide sèche | F10: T_interHum [°C] | G10: 27.18186063
C11: Te [°C]
C12: Ts [°C]
C13: we [g/kgas] | F13: Batterie froide + humidificateur
C14: ws [g/kgas] | F14: Te [°C]
F15: Ts [°C] | I15: Batterie chaude + humidificateur + te < 3°
F16: we [g/kgas] | I16: Te [°C]
F17: ws [g/kgas] | I17: Ts [°C]
C18: Batterie chaude sèche + te<3° | F18: T_inter [°C] | I18: we [g/kgas]
C19: Te [°C] | F19: w_inter [g/kgas] | I19: ws [g/kgas]
C20: Ts [°C] | F20: T_infini [°C] | I20: T_inter [°C]
C21: we [g/kgas] | F21: w_infini [g/kgas] | I21: w_inter [g/kgas]
C22: ws [g/kgas] | F22: T_interHum [°C] | I22: Te3 [°C]
C23: Te3 [°C] | F23: w_interHum [g/kgas] | I23: we3 [g/kgas]
C24: we3 [g/kgas] | I24: T_interHum [°C]
L25: MANUEL D'UTILISATION
F27: Succession d'humificateurs
C28: Hum Pulv eau + Batterie froide | F28: Te [°C] | I28: Batterie chaude + déshumidificateur | L28: Récapitulatif soufflage
C29: Te [°C] | F29: Ts [°C] | I29: Te [°C] | L29: T soufflage | M29: 22.22201446
C30: Ts [°C] | F30: we [g/kgas] | I30: Ts [°C] | L30: T mélange | M30: 8.197573958
C31: we [g/kgas] | F31: ws [g/kgas] | I31: we [g/kgas] | L31: T extérieur | M31: -9
C32: ws [g/kgas] | F32: T_inter [°C] | I32: ws [g/kgas] | L32: T intérieur | M32: 12
C33: T_inter[°C] | F33: w_inter [g/kgas] | I33: T_inter [°C] | L33: w soufflage | M33: 6.822725444
C34: w_inter [g/kgas] | I34: w_inter [g/kgas] | L34: w mélange | M34: 4.940123079
L35: w extérieur | M35: 1.538747493
L36: w intérieur | M36: 5.678329269

Sheet Resultats
C2: Résultats Dimensionnement d'une CTA
C3: Données d'entrées
C4: Température d'entrée [°C] | D4: 8.198
C5: Humidité relative d'entrée [%] | D5: 73.03
C6: Humidité spécifique d'entrée [kg/kgas] | D6: 0.005
C7: Température de sortie [°C] | D7: 22.222
C8: Humidité relative de sortie [%] | D8: 40.79
C9: Humidité spécifique de sortie [kg/kgas] | D9: 0.007
C10: Batterie de préchauffage
C11: Puissance [kW] | D11: 0
C12: Efficacité [%] | D12: 0
C13: Batterie chaude
C14: Puissance [kW] | D14: 221.91
C15: Efficacité [%] | D15: 22.69
C16: Batterie chaude Associée avec un humidificateur à injection d'eau
C17: Puissance [kW] | D17: 300.4
C18: Efficacité [%] | D18: 31.75
C19: Batterie de froide
C20: Puissance [kW] | D20: 0
C21: Efficacité [%] | D21: 0
C22: Débit d'eau condensé [kg/h] | D22: 0
C23: Batterie de froide Associée avec un humidificateur à injection d'eau
C24: Puissance [kW] | D24: 0
C25: Efficacité [%] | D25: 0
C26: Débit d'eau condensé [kg/h] | D26: 0
C27: Calcul intermédiaire par injection de vapeur
C28: Température intermédiaire [°C] | D28: 0
C29: Humidité spécifique intermédiaire [kg/kgas] | D29: 0
C30: Enthalpie spécifique [kJ/kgas] | D30: 0
C31: Calcul intermédiaire par pulvérisation à eau
C32: Température intermédiaire [°C] | D32: 0
C33: Humidité spécifique intermédiaire [kg/kgas] | D33: 0
C34: Enthalpie spécifique [kJ/kgas] | D34: 0
C35: Humidificateur par injection de vapeur
C36: Masse d'eau vaporisée [kg/h] | D36: 111.06
C37: Humidificateur par pulvérisation d'eau
C38: Masse d'eau [kg/h] | D38: 111.06
C39: Ventilateur de sortie
C40: Puissance [kW] | D40: 5.6
